fUSD/lending_fUSD_20240327
["ID","MTS","AMOUNT","RATE_DAILY","PERIOD"]
[320794575,1711561831910,-155.0,0.00037761,60]
[320794576,1711561831919,-155.0,0.00037826,4]
[320794577,1711561831929,-280.63405381,0.00037826,4]
[320794578,1711561831942,-584.86565296,0.00037826,4]
[320794579,1711561831951,-175.5,0.00038356,2]
[320794580,1711561831960,-2883.17613282,0.000386,2]
[320794581,1711561831971,-1337.70924369,0.000386,2]
[320794582,1711561831987,-416.57498993,0.000386,2]
[320794583,1711561831999,-431.18512968,0.000386,2]
[320794584,1711561832010,-383.77072535,0.000386,2]
[320794585,1711561832120,-4779.16469732,0.000386,2]
[320794586,1711561832132,-11922.1070028,0.000386,2]
[320794587,1711561832151,-591.40532263,0.000386,2]
[320794633,1711561837845,-270.57431776,0.000386,2]
[320794640,1711561837902,-742.0473635,0.000386,2]
[320794642,1711561837915,-14678.32098434,0.000386,2]
[320794644,1711561837925,-1500.0,0.00038794,45]
[320794646,1711561837937,-1000.0,0.00038904,120]
[320794648,1711561837947,-454.00971351,0.00039198,30]
[320794650,1711561837957,-499.99,0.00039198,2]
[320794652,1711561837967,-642.22784479,0.00039199,15]
[320794655,1711561837977,-17200.40960345,0.000392,2]
[320794657,1711561837990,-23359.88091789,0.000392,2]
[320794660,1711561838012,-505.72732008,0.000392,2]
[320794663,1711561838029,-19110.558765,0.000392,2]
[320794665,1711561838041,-15280.993895,0.000392,2]
[320794668,1711561838054,-1198.01451632,0.000392,2]
[320794672,1711561838084,-443.83778674,0.000392,2]
[320794674,1711561838096,-657.76259654,0.000392,2]
[320794675,1711561838108,-2312.19029328,0.000392,2]
[320794775,1711561839986,-4207.00220492,0.000392,2]
[320794789,1711561840149,-4430.49086565,0.000392,2]
[320794792,1711561840162,-4406.36749662,0.000392,2]
[320794795,1711561840208,-6886.76373851,0.000392,2]
[320794796,1711561840219,-167.71,0.00039297,120]
[320794797,1711561840229,-2792.26,0.000395,2]
[320794798,1711561840238,-275.856152,0.000396,2]
[320794799,1711561840249,-150.0,0.00039748,2]
[320794800,1711561840260,-150.0,0.00039748,2]
[320794801,1711561840270,-150.0,0.00039748,2]
[320794802,1711561840280,-150.0,0.00039748,2]
[320794803,1711561840289,-150.0,0.00039748,2]
[320794804,1711561840300,-150.0,0.00039748,2]
[320794805,1711561840309,-150.0,0.00039748,2]
[320794806,1711561840318,-150.0,0.00039748,2]
[320794807,1711561840327,-150.0,0.00039748,2]
[320794808,1711561840337,-150.0,0.00039748,2]
[320794809,1711561840347,-2500.0,0.000399,2]
[320794810,1711561840356,-1000.0,0.000399,2]
[320794811,1711561840366,-23900.0,0.00039966,2]
[320794812,1711561840375,-155.0,0.00039998,4]
[320794813,1711561840385,-157.27631021,0.00039999,4]
[320794814,1711561840395,-19137.30716305,0.0004,4]
[320794818,1711561842940,-3527.24039993,0.0004,4]
[320794819,1711561843140,-978.35739415,0.0004,4]
[320794820,1711561843149,-192.22165366,0.0004,2]
[320794821,1711561843159,-300.69139908,0.0004,30]
[320794822,1711561843168,-250.0,0.00040035,2]
[320794823,1711561843178,-213.64,0.00040223,120]
[320794824,1711561843187,-150.0,0.00040397,2]
[320794825,1711561843196,-250.0,0.00040407,110]
[320794826,1711561843205,-159.78,0.00041096,2]
[320794827,1711561843215,-183.0,0.00041629,2]
[320794828,1711561843224,-412.62,0.00041634,15]
[320794829,1711561843233,-968.0,0.00042157,2]
[320794830,1711561843243,-175.5,0.00042466,2]
[320794831,1711561843253,-500.0,0.0004316,2]
[320794832,1711561843262,-999.92,0.00043171,60]
[320794833,1711561843271,-250.0,0.00043191,2]
[320794834,1711561843286,-2803.09,0.00043212,2]
[320794835,1711561843296,-412.62,0.00044373,15]
[320794836,1711561843305,-383.03,0.00044449,2]
[320794837,1711561843316,-160.0,0.00045258,2]
[320794838,1711561843326,-3401.8,0.0004529,120]
[320794839,1711561843335,-2803.09,0.00045952,2]
[320794840,1711561843344,-175.5,0.00046575,2]
[320794841,1711561843354,-924.51,0.00046697,2]
[320794842,1711561843363,-409.3,0.00046697,2]
[320794843,1711561843372,-924.51,0.00046697,2]
[320794844,1711561843382,-409.3,0.00046697,2]
[320794845,1711561843390,-924.51,0.00046697,2]
[320794846,1711561843400,-409.3,0.00046697,2]
[320794847,1711561843409,-161.39,0.00046834,2]
[320794848,1711561843418,-150.0,0.00046834,2]
[320794849,1711561843428,-246.96,0.00046834,2]
[320794850,1711561843437,-150.0,0.00046834,2]
[320794851,1711561843446,-415.7,0.00046834,2]
[320794852,1711561843455,-150.0,0.00046834,2]
[320794853,1711561843465,-150.0,0.00046834,2]
[320794854,1711561843474,-150.0,0.00046834,2]
[320794855,1711561843483,-161.39,0.00046834,2]
[320794856,1711561843492,-415.7,0.00046834,2]
[320794857,1711561843501,-150.0,0.00046834,2]
[320794858,1711561843511,-150.0,0.00046834,2]
[320794860,1711561843520,-150.0,0.00046834,2]
[320794862,1711561843530,-161.39,0.00046834,2]
[320794864,1711561843539,-517.72,0.00046859,2]
[320794866,1711561843549,-303.9,0.00046859,2]
[320794868,1711561843558,-347.44,0.00046859,2]
[320794870,1711561843567,-186.95,0.00046859,2]
[320794872,1711561843577,-517.72,0.00046859,2]
[320794874,1711561843587,-347.44,0.00046859,2]
[320794876,1711561843596,-517.72,0.00046859,2]
[320794878,1711561843606,-347.44,0.00046859,2]
[320794880,1711561843616,-412.62,0.00047113,15]
[320794882,1711561843626,-156.38,0.00047133,2]
[320794884,1711561843637,-167.0,0.00047178,2]
[320794886,1711561843647,-714.41,0.00047233,120]
[320794888,1711561843657,-180.0,0.00047361,120]
[320794890,1711561843667,-968.0,0.00047427,2]
[320794892,1711561843677,-150.0,0.00047656,2]
[320794894,1711561843686,-150.0,0.00047656,2]
[320794895,1711561843696,-415.7,0.00047656,2]
[320794896,1711561843706,-415.7,0.00047656,2]
[320794897,1711561843715,-150.0,0.00047656,2]
[320794898,1711561843725,-161.39,0.00047656,2]
[320794899,1711561843735,-150.0,0.00047656,2]
[320794900,1711561843744,-150.0,0.00047656,2]
[320794901,1711561843753,-150.0,0.00047656,2]
[320794902,1711561843763,-415.7,0.00047656,2]
[320794903,1711561843773,-161.39,0.00047656,2]
[320794904,1711561843782,-150.0,0.00047656,2]
[320794905,1711561843791,-150.0,0.00047656,2]
[320794906,1711561843802,-415.7,0.00047656,2]
[320794907,1711561843811,-150.0,0.00047656,2]
[320794908,1711561843821,-150.0,0.00047656,2]
[320794909,1711561843831,-150.0,0.00047656,2]
[320794910,1711561843842,-161.39,0.00047656,2]
[320794911,1711561843853,-415.7,0.00047656,2]
[320794912,1711561843863,-150.0,0.00047656,2]
[320794913,1711561843873,-150.0,0.00047656,2]
[320794914,1711561843883,-150.0,0.00047656,2]
[320794915,1711561843892,-161.39,0.00047656,2]
[320794916,1711561843902,-150.0,0.00047656,2]
[320794917,1711561843912,-415.7,0.00047656,2]
[320794918,1711561843921,-150.0,0.00047656,2]
[320794919,1711561843931,-150.0,0.00047656,2]
[320794920,1711561843940,-150.0,0.00047656,2]
[320794921,1711561843950,-161.39,0.00047656,2]
[320794922,1711561843959,-150.0,0.00047656,2]
[320794923,1711561843968,-150.0,0.00047656,2]
[320794924,1711561843978,-150.0,0.00047656,2]
[320794925,1711561843987,-161.39,0.00047656,2]
[320794926,1711561843996,-150.0,0.00047656,2]
[320794927,1711561844006,-150.0,0.00047656,2]
[320794928,1711561844016,-150.0,0.00047656,2]
[320794929,1711561844026,-161.39,0.00047656,2]
[320794930,1711561844035,-150.0,0.00047656,2]
[320794931,1711561844045,-300.0,0.00047656,2]
[320794932,1711561844055,-150.0,0.00047656,2]
[320794933,1711561844064,-161.39,0.00047656,2]
[320794934,1711561844074,-150.0,0.00047656,2]
[320794935,1711561844084,-415.7,0.00047656,2]
[320794936,1711561844094,-150.0,0.00047656,2]
[320794937,1711561844103,-161.39,0.00047656,2]
[320794938,1711561844113,-829.12,0.00047656,2]
[320794939,1711561844123,-161.39,0.00047656,2]
[320794940,1711561844133,-161.39,0.00047656,2]
[320794941,1711561844142,-150.0,0.00047656,2]
[320794942,1711561844152,-225.39,0.00047656,2]
[320794943,1711561844162,-150.0,0.00047681,2]
[320794944,1711561844172,-150.0,0.00047681,2]
[320794945,1711561844181,-150.0,0.00047681,2]
[320794946,1711561844191,-150.0,0.00047681,2]
[320794947,1711561844201,-150.0,0.00047681,2]
[320794948,1711561844210,-150.0,0.00047681,2]
[320794949,1711561844219,-150.0,0.00047681,2]
[320794950,1711561844229,-836.58,0.00047681,2]
[320794951,1711561844239,-150.99,0.00047681,2]
[320794952,1711561844249,-150.0,0.00047681,2]
[320794953,1711561844259,-161.39,0.00047681,2]
[320794954,1711561844268,-1084.07,0.00047681,2]
[320794955,1711561844279,-150.0,0.00047681,2]
[320794956,1711561844288,-150.0,0.00047681,2]
[320794957,1711561844297,-150.0,0.00047681,2]
[320794958,1711561844306,-150.0,0.00047681,2]
[320794959,1711561844316,-150.0,0.00047681,2]
[320794960,1711561844325,-517.72,0.00047681,2]
[320794961,1711561844334,-150.0,0.00047681,2]
[320794962,1711561844343,-150.0,0.00047681,2]
[320794963,1711561844352,-161.39,0.00047681,2]
[320794964,1711561844361,-150.0,0.00047681,2]
[320794965,1711561844371,-161.39,0.00047681,2]
[320794966,1711561844380,-150.0,0.00047681,2]
[320794967,1711561844390,-517.72,0.00047681,2]
[320794968,1711561844399,-347.44,0.00047681,2]
[320794969,1711561844409,-161.39,0.00047681,2]
[320794970,1711561844418,-517.72,0.00047681,2]
[320794971,1711561844428,-150.0,0.00047681,2]
[320794972,1711561844438,-161.39,0.00047681,2]
[320794973,1711561844448,-517.72,0.00047681,2]
[320794974,1711561844459,-409.3,0.00047681,2]
[320794975,1711561844468,-150.0,0.00047681,2]
[320794976,1711561844479,-692.92,0.00047681,2]
[320794977,1711561844488,-517.72,0.00047681,2]
[320794978,1711561844498,-161.39,0.00047681,2]
[320794979,1711561844507,-150.0,0.00047681,2]
[320794980,1711561844517,-517.72,0.00047681,2]
[320794981,1711561844527,-150.0,0.00047681,2]
[320794982,1711561844537,-161.39,0.00047681,2]
[320794983,1711561844547,-517.72,0.00047681,2]
[320794984,1711561844556,-150.0,0.00047681,2]
[320794985,1711561844565,-161.39,0.00047681,2]
[320794986,1711561844574,-517.72,0.00047681,2]
[320794987,1711561844584,-150.0,0.00047681,2]
[320794988,1711561844594,-161.39,0.00047681,2]
[320794989,1711561844603,-517.72,0.00047681,2]
[320794990,1711561844613,-409.3,0.00047681,2]
[320794991,1711561844624,-150.0,0.00047681,2]
[320794992,1711561844633,-517.72,0.00047681,2]
[320794993,1711561844643,-150.0,0.00047681,2]
[320794994,1711561844652,-517.72,0.00047681,2]
[320794995,1711561844662,-150.0,0.00047681,2]
[320794996,1711561844671,-150.0,0.00047681,2]
[320794997,1711561844682,-1027.52,0.00047681,2]
[320794998,1711561844691,-385.65,0.00047681,2]
[320794999,1711561844700,-409.3,0.00047681,2]
[320795000,1711561844710,-409.3,0.00047681,2]
[320795001,1711561844719,-409.3,0.00047681,2]
[320795002,1711561844729,-409.3,0.00047681,2]
[320795003,1711561844739,-409.3,0.00047681,2]
[320795004,1711561844748,-409.3,0.00047681,2]
[320795005,1711561844758,-409.3,0.00047681,2]
[320795006,1711561844767,-409.3,0.00047681,2]
[320795007,1711561844777,-924.51,0.00047681,2]
[320795008,1711561844787,-924.51,0.00047681,2]
[320795009,1711561844798,-924.51,0.00047681,2]
[320795010,1711561844807,-409.3,0.00047681,2]
[320795011,1711561844817,-409.3,0.00047681,2]
[320795012,1711561844827,-924.51,0.00047681,2]
[320795013,1711561844837,-924.51,0.00047681,2]
[320795014,1711561844851,-409.3,0.00047681,2]
[320795015,1711561844860,-409.3,0.00047681,2]
[320795016,1711561844870,-924.51,0.00047681,2]
[320795017,1711561844880,-924.51,0.00047681,2]
[320795018,1711561844891,-409.3,0.00047681,2]
[320795019,1711561844901,-924.51,0.00047681,2]
[320795020,1711561844910,-924.51,0.00047681,2]
[320795021,1711561844920,-409.3,0.00047681,2]
[320795022,1711561844930,-924.51,0.00047681,2]
[320795023,1711561844940,-409.3,0.00047681,2]
[320795024,1711561844950,-409.3,0.00047681,2]
[320795025,1711561844960,-924.51,0.00047681,2]
[320795026,1711561844969,-924.51,0.00047681,2]
[320795027,1711561844978,-924.51,0.00047681,2]
[320795028,1711561844988,-409.3,0.00047681,2]
[320795029,1711561844997,-924.51,0.00047681,2]
[320795030,1711561845007,-924.51,0.00047681,2]
[320795031,1711561845018,-407.83,0.00047681,2]
[320795032,1711561845027,-924.51,0.00047681,2]
[320795033,1711561845037,-924.51,0.00047681,2]
[320795034,1711561845048,-924.51,0.00047681,2]
[320795035,1711561845057,-924.51,0.00047681,2]
[320795036,1711561845066,-460.45713346,0.00048071,13]
[320795037,1711561845075,-200.25,0.00048206,120]
[320795038,1711561845085,-1516.0,0.000485,2]
[320795039,1711561845095,-1000.0,0.00048575,2]
[320795040,1711561845104,-150.0,0.00048674,30]
[320795041,1711561845114,-2803.09,0.00048692,2]
[320795042,1711561845124,-168.67,0.000487,2]
[320795043,1711561845133,-862.56389696,0.00048977,2]
[320795044,1711561845143,-498.65396221,0.00048978,4]
[320795045,1711561845153,-1238.79245682,0.00048979,4]
[320795046,1711561845162,-445.45527983,0.00048979,4]
[320795047,1711561845172,-1362.85766619,0.00048996,4]
[320795048,1711561845181,-3303.34437691,0.00049,2]
[320795049,1711561845191,-2567.61641663,0.00049,120]
[320795050,1711561845200,-460.45713346,0.00049129,14]
[320795051,1711561845210,-12954.78,0.00049154,2]
[320795052,1711561845219,-7665.45,0.00049154,2]
[320795053,1711561845228,-197.0,0.000493,2]
[320795054,1711561845238,-1000.0,0.00049315,60]
[320795055,1711561845247,-5703.98,0.00049315,2]
[320795056,1711561845256,-578.74194329,0.00049386,10]
[320795057,1711561845266,-315.39581683,0.00049799,2]
[320795058,1711561845275,-357.66976658,0.00049799,21]
[320795059,1711561845285,-412.62,0.00049853,120]
[320795060,1711561845295,-439.85884348,0.00049897,120]
[320795061,1711561845307,-314.79011526,0.00049897,120]
[320795062,1711561845317,-350.0,0.00049897,120]
[320795063,1711561845326,-426.39664991,0.00049897,120]
[320795064,1711561845336,-475.3448877,0.00049897,120]
[320795065,1711561845346,-94251.62125682,0.00049898,2]
[320795066,1711561845456,-70497.50122335,0.00049898,2]
[320795067,1711561845468,-7062.04511999,0.00049898,2]
[320795068,1711561845480,-4315.80107485,0.00049898,2]
[320795069,1711561845492,-2154.33476941,0.00049898,2]
[320795086,1711561849032,-517.72,0.00046859,2]
[320795087,1711561849042,-66718.69655558,0.00049898,2]
[320795088,1711561849054,-20071.10760752,0.00049899,7]
[320795089,1711561849063,-150.19866911,0.000499,44]
[320795090,1711561849073,-161.53346799,0.000499,2]
[320795091,1711561849083,-474.50694002,0.000499,2]
[320795092,1711561849093,-174.53036594,0.000499,2]
[320795093,1711561849103,-157.72856214,0.000499,26]
[320795094,1711561849112,-9417.89501359,0.000499,26]
[320795095,1711561849122,-750.0,0.000499,2]
[320795096,1711561849131,-171.11161571,0.00049995,2]
[320795097,1711561849141,-1921.27100375,0.00049996,4]
[320795098,1711561849151,-2632.34542249,0.00049996,4]
[320795099,1711561849160,-238.07637591,0.00049996,4]
[320795100,1711561849172,-207.25062771,0.00049997,4]
[320795101,1711561849181,-721.5914364,0.00049997,2]
[320795102,1711561849191,-5000.0,0.00049997,4]
[320795103,1711561849201,-780.60517172,0.00049998,4]
[320795104,1711561849210,-187539.09301742,0.00049998,2]
[320795105,1711561849219,-22038.94073476,0.00049998,4]
[320795106,1711561849230,-3240.40607044,0.00049998,2]
[320795107,1711561849239,-965.0,0.0005,7]
[320795108,1711561849249,-999.999999,0.0005,2]
[320795109,1711561849258,-223519.89029298,0.0005,2]
[320795110,1711561849267,-2199.99999901,0.0005,5]
[320795111,1711561849278,-155.0,0.0005,2]
[320795112,1711561849289,-7137.00982734,0.0005,14]
[320795113,1711561849299,-430.19799114,0.0005,28]
[320795114,1711561849313,-3490.0,0.0005,13]
[320795115,1711561849322,-2641.26513815,0.0005,30]
[320795116,1711561849332,-5000.0,0.0005,30]
[320795117,1711561849341,-421.0110837,0.0005,30]
[320795118,1711561849351,-1900.0,0.0005,70]
[320795119,1711561849360,-666.57961767,0.0005,120]
[320795120,1711561849370,-150.0,0.00050026,30]
[320795121,1711561849380,-155.05030773,0.00050032,60]
[320795122,1711561849389,-157.18743014,0.00050101,60]
[320795123,1711561849398,-712.61418707,0.00050135,4]
[320795124,1711561849408,-318.86786748,0.00050176,60]
[320795125,1711561849418,-460.45713346,0.00050187,14]
[320795126,1711561849428,-152.91494694,0.00050189,60]
[320795127,1711561849440,-158.63652466,0.00050209,60]
[320795128,1711561849450,-150.50617537,0.00050259,60]
[320795129,1711561849459,-150.50617537,0.0005031,60]
[320795130,1711561849470,-150.19866873,0.00050318,45]
[320795131,1711561849479,-154.75091202,0.00050423,60]
[320795132,1711561849489,-154.13724489,0.00050469,60]
[320795133,1711561849498,-150.50617537,0.00050499,60]
[320795134,1711561849508,-9417.89501353,0.00050535,27]
[320795135,1711561849517,-153.33171327,0.00050572,60]
[320795136,1711561849527,-19365.71,0.00050575,120]
[320795137,1711561849538,-2000.0,0.00050586,10]
[320795138,1711561849548,-150.50617537,0.00050608,60]
[320795139,1711561849561,-1159.29,0.00050653,10]
[320795140,1711561849570,-1000.0,0.00050684,60]
[320795141,1711561849579,-175.5,0.00050685,2]
[320795142,1711561849588,-154.75091202,0.00050688,60]
[320795143,1711561849597,-150.50617537,0.00050725,60]
[320795144,1711561849606,-150.19866873,0.00050736,47]
[320795145,1711561849616,-150.0,0.000508,10]
[320795146,1711561849625,-154.13724489,0.00050807,60]
[320795147,1711561849634,-157.20206273,0.00050828,60]
[320795148,1711561849643,-153.33171327,0.00050866,60]
[320795149,1711561849652,-1000.0,0.00050958,120]
[320795150,1711561849661,-1000.0,0.00050958,120]
[320795151,1711561849670,-1000.0,0.00050958,120]
[320795152,1711561849679,-1000.0,0.00050958,120]
[320795153,1711561849688,-1000.0,0.00050958,120]
[320795154,1711561849697,-1000.0,0.00050958,120]
[320795155,1711561849707,-1000.0,0.00050958,120]
[320795156,1711561849716,-1000.0,0.00050958,120]
[320795157,1711561849725,-1000.0,0.00050958,120]
[320795158,1711561849734,-171.60255508,0.00050958,120]
[320795159,1711561849743,-631.34,0.00050958,60]
[320795160,1711561849752,-154.13724489,0.00051054,60]
[320795161,1711561849761,-150.50617537,0.00051082,60]
[320795162,1711561849771,-318.86786748,0.00051085,60]
[320795163,1711561849781,-22460.87192228,0.000511,7]
[320795164,1711561849790,-1667.50820547,0.000511,30]
[320795165,1711561849800,-19343.4,0.00051139,120]
[320795166,1711561849810,-150.19866873,0.00051153,49]
[320795167,1711561849820,-9417.89501353,0.0005117,28]
[320795168,1711561849829,-154.13724489,0.00051174,60]
[320795169,1711561849838,-460.45713346,0.00051245,14]
[320795170,1711561849851,-150.0,0.000513,10]
[320795171,1711561849860,-318.86786748,0.00051308,60]
[320795172,1711561849870,-150.0,0.00051378,30]
[320795173,1711561849879,-152.22028874,0.0005141,60]
[320795174,1711561849889,-318.86786748,0.00051421,60]
[320795175,1711561849898,-157.09370442,0.00051437,60]
[320795176,1711561849907,-500.0,0.00051505,90]
[320795177,1711561849917,-500.0,0.00051505,90]
[320795178,1711561849928,-631.34,0.00051506,60]
[320795179,1711561849937,-157.18743014,0.00051514,60]
[320795180,1711561849946,-150.19866873,0.00051571,50]
[320795181,1711561849955,-152.91494694,0.00051658,60]
[320795182,1711561849965,-155.05030773,0.0005168,60]
[320795183,1711561849974,-961.817,0.00051709,120]
[320795184,1711561849983,-1382.689,0.00051709,120]
[320795185,1711561849992,-458.0,0.00051709,120]
[320795186,1711561850002,-2420.0,0.00051709,120]
[320795187,1711561850011,-1244.0,0.00051709,120]
[320795188,1711561850020,-537.0,0.00051709,120]
[320795189,1711561850030,-1225.0,0.00051709,120]
[320795190,1711561850039,-802.0,0.00051709,120]
[320795191,1711561850048,-1267.0,0.00051709,120]
[320795192,1711561850059,-433.0,0.00051709,120]
[320795193,1711561850068,-604.0,0.00051709,120]
[320795194,1711561850077,-278.0,0.00051709,120]
[320795195,1711561850086,-150.0,0.00051709,120]
[320795196,1711561850095,-2959.0,0.00051709,120]
[320795197,1711561850105,-1138.0,0.00051709,120]
[320795198,1711561850114,-396.0,0.00051709,120]
[320795199,1711561850124,-1461.0,0.00051709,120]
[320795200,1711561850134,-2423.0,0.00051709,120]
[320795201,1711561850143,-1626.0,0.00051709,120]
[320795202,1711561850152,-213.0,0.00051709,2]
[320795203,1711561850161,-258.0,0.00051709,2]
[320795204,1711561850170,-192.0,0.00051709,120]
[320795205,1711561850180,-4771.0,0.00051709,120]
[320795206,1711561850189,-1176.0,0.00051709,120]
[320795207,1711561850198,-2449.0,0.00051709,120]
[320795208,1711561850207,-1046.0,0.00051709,120]
[320795209,1711561850216,-500.0,0.0005172,120]
[320795210,1711561850226,-157.09370442,0.00051742,60]
[320795211,1711561850235,-500.0,0.00051779,90]
[320795212,1711561850245,-154.13724489,0.0005179,60]
[320795213,1711561850254,-25019.34908104,0.000518,12]
[320795214,1711561850263,-167191.50538342,0.000518,2]
[320795215,1711561850273,-150.0,0.000518,10]
[320795216,1711561850283,-150.0,0.000518,10]
[320795217,1711561850292,-150.0,0.000518,10]
[320795218,1711561850301,-9417.89501353,0.00051805,28]
[320795219,1711561850313,-152.91494694,0.00051812,60]
[320795220,1711561850324,-178.5,0.0005189,15]
[320795221,1711561850333,-503744.47667801,0.000519,30]
[320795222,1711561850343,-150.0,0.00051911,10]
[320795223,1711561850352,-2348.57991799,0.00051926,10]
[320795224,1711561850362,-2303.93463849,0.00051927,10]
[320795225,1711561850371,-7500.0,0.00051949,3]
[320795226,1711561850381,-249.07051585,0.00051954,10]
[320795227,1711561850390,-1691.30301132,0.00051959,10]
[320795228,1711561850400,-1511.64445676,0.0005198,10]
[320795229,1711561850409,-151.0,0.00051989,2]
[320795230,1711561850419,-150.19866873,0.00051989,52]
[320795231,1711561850428,-150.0,0.00051989,10]
[320795232,1711561850438,-1218.5870929,0.00052,120]
[320795233,1711561850447,-253.03202787,0.00052,120]
[320795234,1711561850456,-2437.42170417,0.00052,4]
[320795235,1711561850466,-150.0,0.00052,30]
[320795236,1711561850476,-154.75091202,0.00052019,60]
[320795237,1711561850485,-500.0,0.00052053,90]
[320795238,1711561850494,-500.0,0.00052053,90]
[320795239,1711561850588,-631.34,0.00052054,60]
[320795240,1711561850599,-1000.0,0.00052054,60]
[320795241,1711561850608,-3000.0,0.00052054,120]
[320795242,1711561850617,-1513.74,0.00052054,120]
[320795243,1711561850626,-2319.97,0.00052054,2]
[320795244,1711561850636,-2685.53,0.00052054,120]
[320795245,1711561850646,-154.13724489,0.00052167,60]
[320795246,1711561850656,-150.50617537,0.00052168,60]
[320795247,1711561850665,-152.91494694,0.00052184,60]
[320795248,1711561850674,-3000.0,0.00052191,120]
[320795249,1711561850683,-150.0,0.000523,11]
[320795250,1711561850693,-150.0,0.000523,11]
[320795251,1711561850702,-150.0,0.000523,11]
[320795252,1711561850712,-150.0,0.000523,11]
[320795253,1711561850722,-460.45713346,0.00052303,14]
[320795254,1711561850731,-1000.0,0.00052309,120]
[320795255,1711561850740,-2775.92,0.00052328,120]
[320795256,1711561850749,-1513.74,0.00052328,120]
[320795257,1711561850760,-2685.53,0.00052328,120]
[320795258,1711561850769,-150.19866873,0.00052407,53]
[320795259,1711561850778,-9417.89501353,0.0005244,29]
[320795260,1711561850787,-154.13724489,0.0005247,60]
[320795261,1711561850797,-151.0,0.00052493,10]
[320795262,1711561850807,-4705.81559403,0.000525,4]
[320795263,1711561850817,-201.22,0.000525,120]
[320795264,1711561850827,-201.22,0.000525,120]
[320795265,1711561850837,-201.22,0.000525,120]
[320795266,1711561850847,-201.22,0.000525,120]
[320795267,1711561850858,-201.22,0.000525,120]
[320795268,1711561850867,-201.22,0.000525,120]
[320795269,1711561850876,-201.22,0.000525,120]
[320795270,1711561850885,-201.22,0.000525,120]
[320795271,1711561850894,-201.22,0.000525,120]
[320795272,1711561850904,-201.22,0.000525,120]
[320795273,1711561850914,-201.22,0.000525,120]
[320795274,1711561850925,-201.22,0.000525,120]
[320795275,1711561850934,-201.22,0.000525,120]
[320795276,1711561850943,-201.22,0.000525,120]
[320795277,1711561850952,-201.22,0.000525,120]
[320795278,1711561850962,-201.22,0.000525,120]
[320795279,1711561850971,-201.22,0.000525,120]
[320795280,1711561850981,-201.22,0.000525,120]
[320795281,1711561850991,-201.22,0.000525,120]
[320795282,1711561851000,-201.22,0.000525,120]
[320795283,1711561851010,-201.22,0.000525,120]
[320795284,1711561851021,-201.22,0.000525,120]
[320795285,1711561851030,-201.22,0.000525,120]
[320795286,1711561851040,-201.22,0.000525,120]
[320795287,1711561851049,-201.22,0.000525,120]
[320795288,1711561851061,-201.22,0.000525,120]
[320795289,1711561851070,-201.22,0.000525,120]
[320795290,1711561851079,-201.22,0.000525,120]
[320795291,1711561851088,-201.22,0.000525,120]
[320795292,1711561851097,-201.22,0.000525,120]
[320795293,1711561851106,-201.22,0.000525,120]
[320795294,1711561851116,-201.22,0.000525,120]
[320795295,1711561851126,-201.22,0.000525,120]
[320795296,1711561851135,-201.22,0.000525,120]
[320795297,1711561851144,-201.22,0.000525,120]
[320795298,1711561851153,-201.22,0.000525,120]